fUSD/lending_fUSD_20260607
["ID","MTS","AMOUNT","RATE_DAILY","PERIOD"]
[424317902,1780767047000,-666.0,0.00014999,2]
[424317910,1780767047000,-400.00000008,0.00015,2]
[424317903,1780767047000,-2452794.91067762,0.00015,2]
[424317906,1780767047000,-351.77766535,0.00015,2]
[424317911,1780767047000,-1000.0,0.00015,2]
[424317909,1780767047000,-247.03,0.00015,2]
[424317905,1780767047000,-428.80272023,0.00015,2]
[424317913,1780767047000,-1000.0,0.00015,2]
[424317921,1780767047000,-1000.0,0.00015,2]
[424317924,1780767047000,-1000.0,0.00015,2]
[424317917,1780767047000,-1000.0,0.00015,2]
[424317918,1780767047000,-1000.0,0.00015,2]
[424317920,1780767047000,-1000.0,0.00015,2]
[424317915,1780767047000,-1000.0,0.00015,2]
[424317912,1780767047000,-1000.0,0.00015,2]
[424317919,1780767047000,-1000.0,0.00015,2]
[424317914,1780767047000,-1000.0,0.00015,2]
[424317907,1780767047000,-988.12,0.00015,2]
[424317949,1780767048000,-215.80795776,8.044e-05,2]
[424317950,1780767048000,-563.52,0.00013698,2]
[424317952,1780767048000,-563.52,0.00013698,2]
[424317953,1780767048000,-563.52,0.00013698,2]
[424317951,1780767048000,-563.52,0.00013698,2]
[424317962,1780767049000,-563.52,0.00013698,2]
[424317954,1780767049000,-563.52,0.00013698,2]
[424317956,1780767049000,-3821.84340805,0.00015,2]
[424317957,1780767049000,-1347.1,0.00015,2]
[424317955,1780767049000,-563.52,0.00013698,2]
[424317959,1780767049000,-171.4,0.00012041,2]
[424317961,1780767049000,-563.52,0.00013698,2]
[424317958,1780767049000,-171.4,0.00012041,2]
[424317965,1780767049000,-563.52,0.00013698,2]
[424317960,1780767049000,-563.52,0.00013698,2]
[424317963,1780767049000,-563.52,0.00013698,2]
[424317966,1780767049000,-563.52,0.00013698,2]
[424317968,1780767049000,-563.52,0.00014999,2]
[424317978,1780767049000,-360.46281815,0.00014999,2]
[424317976,1780767049000,-151.54760605,0.00013836,2]
[424317974,1780767049000,-151.54760605,0.00013775,2]
[424317975,1780767049000,-151.54760605,0.00013821,2]
[424317970,1780767049000,-511.2450525,0.00015,2]
[424317964,1780767049000,-563.52,0.00013698,2]
[424317972,1780767049000,-162.94783774,0.00015,2]
[424317977,1780767049000,-203.05718185,0.00014999,2]
[424317973,1780767049000,-3001.70084975,0.00015,2]
[424317969,1780767049000,-2213.7436292,0.00015,2]
[424317967,1780767049000,-563.52,0.00014899,2]
[424317971,1780767049000,-563.52,0.00014999,2]
[424317980,1780767050000,-301.59781812,0.00014999,2]
[424317981,1780767050000,-112.30218188,0.00014999,2]
[424317979,1780767050000,-261.92218188,0.00014999,2]
[424317982,1780767059000,152.0,7.689e-05,7]
[424317986,1780767362000,1251.35447761,0.00030137,120]
[424318002,1780768011000,-234.60224173,7.64e-05,2]
[424318005,1780768011000,-187.67664591,7.64e-05,2]
[424318003,1780768011000,-500.0,7.64e-05,2]
[424318004,1780768011000,-253.85101304,7.64e-05,2]
[424318010,1780768098000,1492.30894,0.00030136,120]
[424318011,1780768141000,1000.0,0.00030136,120]
[424318012,1780768155000,-227.3748017,7.639e-05,2]
[424318045,1780768232000,-72.6251983,7.639e-05,2]
[424318046,1780768232000,-150.0,7.639e-05,2]
[424318059,1780768232000,-500.0,7.64e-05,2]
[424318054,1780768232000,-500.0,7.64e-05,2]
[424318053,1780768232000,-500.0,7.64e-05,2]
[424318052,1780768232000,-500.0,7.64e-05,2]
[424318049,1780768232000,-503.29303457,7.64e-05,2]
[424318047,1780768232000,-300.0,7.639e-05,2]
[424318050,1780768232000,-500.0,7.64e-05,2]
[424318055,1780768232000,-6.1588965,7.64e-05,2]
[424318056,1780768232000,-493.8411035,7.64e-05,2]
[424318057,1780768232000,-250.0,7.64e-05,2]
[424318058,1780768232000,-500.0,7.64e-05,2]
[424318048,1780768232000,-67.92287063,7.64e-05,2]
[424318063,1780768232000,-373.348928,7.64e-05,2]
[424318060,1780768232000,-500.0,7.64e-05,2]
[424318073,1780768232000,-2748.8977425,7.841e-05,2]
[424318072,1780768232000,-1000.30473627,7.841e-05,2]
[424318071,1780768232000,-1025806.03428956,7.841e-05,2]
[424318070,1780768232000,-164.5385543,7.641e-05,2]
[424318069,1780768232000,-513.3346,7.641e-05,2]
[424318051,1780768232000,-500.0,7.64e-05,2]
[424318068,1780768232000,-94401.6826,7.641e-05,2]
[424318066,1780768232000,-1293.7617,7.641e-05,2]
[424318065,1780768232000,-250.0,7.641e-05,2]
[424318061,1780768232000,-431.41126563,7.64e-05,2]
[424318064,1780768232000,-178.91966157,7.64e-05,2]
[424318062,1780768232000,-500.0,7.64e-05,2]
[424318067,1780768232000,-2706.2733,7.641e-05,2]
[424318079,1780768238000,-776.0,7.841e-05,2]
[424318078,1780768238000,-586.89278139,7.841e-05,2]
[424318226,1780768240000,-544.0,7.841e-05,2]
[424318229,1780768240000,-1119.44662014,7.841e-05,2]
[424318228,1780768240000,-737.75575657,7.841e-05,2]
[424318236,1780768246000,-3717.77907202,7.945e-05,2]
[424318234,1780768246000,-160.0,7.944e-05,2]
[424318235,1780768246000,-268.513773,7.945e-05,2]
[424318263,1780768247000,-255.0,8.403e-05,2]
[424318265,1780768247000,-239765.97,8.403e-05,2]
[424318281,1780768247000,-220.13276167,0.0001,2]
[424318261,1780768247000,-3228.81,8.219e-05,2]
[424318262,1780768247000,-420.0,8.403e-05,2]
[424318260,1780768247000,-499.99,8.219e-05,2]
[424318264,1780768247000,-4999.99,8.403e-05,2]
[424318275,1780768247000,-13534.12,9.366e-05,2]
[424318268,1780768247000,-167.0,9.243e-05,2]
[424318267,1780768247000,-250.0,8.404e-05,2]
[424318270,1780768247000,-888.93,9.3e-05,2]
[424318272,1780768247000,-29044.44,9.366e-05,2]
[424318258,1780768247000,-3879.73,8.219e-05,2]
[424318278,1780768247000,-500.0,9.366e-05,2]
[424318266,1780768247000,-1582.25,8.403e-05,2]
[424318259,1780768247000,-1632.13,8.219e-05,2]
[424318250,1780768247000,-9999.99,8.219e-05,2]
[424318256,1780768247000,-1979.13,8.219e-05,2]
[424318255,1780768247000,-521.56,8.219e-05,2]
[424318253,1780768247000,-1561.23,8.219e-05,2]
[424318254,1780768247000,-7224.96,8.219e-05,2]
[424318252,1780768247000,-299.99,8.219e-05,2]
[424318251,1780768247000,-9999.99,8.219e-05,2]
[424318247,1780768247000,-500.0,8.219e-05,2]
[424318248,1780768247000,-500.0,8.219e-05,2]
[424318249,1780768247000,-500.0,8.219e-05,2]
[424318246,1780768247000,-227.72967147,8.219e-05,2]
[424318245,1780768247000,-500.0,8.219e-05,2]
[424318243,1780768247000,-4958.446639,8.178e-05,2]
[424318244,1780768247000,-500.0,8.219e-05,2]
[424318242,1780768247000,-5483.70533898,7.945e-05,2]
[424318269,1780768247000,-433.0,9.243e-05,2]
[424318257,1780768247000,-9999.99,8.219e-05,2]
[424318280,1780768247000,-44824.87,9.774e-05,2]
[424318274,1780768247000,-1023.77,9.366e-05,2]
[424318276,1780768247000,-150.99,9.366e-05,2]
[424318307,1780768247000,-2605.66,0.00011619,2]
[424318304,1780768247000,-150.0,0.00011428,2]
[424318306,1780768247000,-156.05680435,0.00011505,2]
[424318297,1780768247000,-2605.66,0.00011091,2]
[424318305,1780768247000,-245.65,0.00011455,2]
[424318302,1780768247000,-150.0,0.00011255,2]
[424318303,1780768247000,-2605.66,0.00011355,2]
[424318300,1780768247000,-156.05680435,0.00011099,2]
[424318301,1780768247000,-156.05680435,0.00011099,2]
[424318298,1780768247000,-500.0,0.00011096,2]
[424318299,1780768247000,-156.0568044,0.00011099,2]
[424318296,1780768247000,-566.17,0.0001096,2]
[424318288,1780768247000,-340.83087181,0.0001,2]
[424318287,1780768247000,-340.0,0.0001,2]
[424318308,1780768247000,-2000.0,0.00011626,2]
[424318289,1780768247000,-200.0,0.00010038,2]
[424318290,1780768247000,-250.0,0.00010094,2]
[424318273,1780768247000,-2134.84,9.366e-05,2]
[424318279,1780768247000,-328388.76009897,9.544e-05,2]
[424318283,1780768247000,-270.92781153,0.0001,2]
[424318291,1780768247000,-8203.91781114,0.000101,2]
[424318293,1780768247000,-2605.66,0.00010563,2]
[424318277,1780768247000,-999.99,9.366e-05,2]
[424318292,1780768247000,-405.0,0.00010168,2]
[424318286,1780768247000,-340.0,0.0001,2]
[424318295,1780768247000,-2605.66,0.00010827,2]
[424318284,1780768247000,-823.22767148,0.0001,2]
[424318271,1780768247000,-9999.99,9.3e-05,2]
[424318285,1780768247000,-368.91438301,0.0001,2]
[424318294,1780768247000,-500.0,0.0001074,2]
[424318282,1780768247000,-163.61,0.0001,2]
[424318349,1780768248000,-500.0,0.00013698,2]
[424318362,1780768248000,-500.0,0.00013698,2]
[424318346,1780768248000,-500.0,0.00013698,2]
[424318340,1780768248000,-500.0,0.00013698,2]
[424318344,1780768248000,-500.0,0.00013698,2]
[424318337,1780768248000,-206.7425237,0.00013425,2]
[424318345,1780768248000,-500.0,0.00013698,2]
[424318342,1780768248000,-500.0,0.00013698,2]
[424318343,1780768248000,-500.0,0.00013698,2]
[424318347,1780768248000,-500.0,0.00013698,2]
[424318359,1780768248000,-500.0,0.00013698,2]
[424318357,1780768248000,-500.0,0.00013698,2]
[424318341,1780768248000,-338.87344356,0.00013698,2]
[424318356,1780768248000,-500.0,0.00013698,2]
[424318353,1780768248000,-500.0,0.00013698,2]
[424318355,1780768248000,-500.0,0.00013698,2]
[424318364,1780768248000,-500.0,0.00013698,2]
[424318351,1780768248000,-332.3,0.00013698,2]
[424318354,1780768248000,-500.0,0.00013698,2]
[424318361,1780768248000,-500.0,0.00013698,2]
[424318352,1780768248000,-500.0,0.00013698,2]
[424318360,1780768248000,-500.0,0.00013698,2]
[424318358,1780768248000,-500.0,0.00013698,2]
[424318365,1780768248000,-500.0,0.00013698,2]
[424318366,1780768248000,-500.0,0.00013698,2]
[424318367,1780768248000,-500.0,0.00013698,2]
[424318348,1780768248000,-500.0,0.00013698,2]
[424318363,1780768248000,-500.0,0.00013698,2]
[424318350,1780768248000,-500.0,0.00013698,2]
[424318318,1780768248000,-196.93,0.00012329,2]
[424318338,1780768248000,-500.0,0.00013698,2]
[424318370,1780768248000,-500.0,0.00013698,2]
[424318320,1780768248000,-204.23871812,0.00012669,2]
[424318309,1780768248000,-35866.50881551,0.00011826,2]
[424318310,1780768248000,-500.0,0.00011836,2]
[424318321,1780768248000,-157.3226945,0.00012671,2]
[424318322,1780768248000,-156.05680435,0.00012738,2]
[424318311,1780768248000,-154.52,0.00011851,2]
[424318319,1780768248000,-500.0,0.00012493,2]
[424318312,1780768248000,-6320.88802124,0.00011859,2]
[424318317,1780768248000,-4550.67,0.00012092,2]
[424318314,1780768248000,-151.0,0.00012,2]
[424318316,1780768248000,-151.0,0.00012,2]
[424318313,1780768248000,-151.0,0.00012,2]
[424318315,1780768248000,-151.0,0.00012,2]
[424318323,1780768248000,-1492.76643713,0.0001297,2]
[424318326,1780768248000,-6585.0,0.00012979,5]
[424318330,1780768248000,-1030.0,0.00013389,2]
[424318327,1780768248000,-2000.0,0.0001308,2]
[424318328,1780768248000,-35866.50881551,0.00013166,2]
[424318324,1780768248000,-8230.0,0.00012979,5]
[424318329,1780768248000,-497.63804233,0.0001329,2]
[424318331,1780768248000,-1500.0,0.00013389,2]
[424318334,1780768248000,-168.48877466,0.00013425,2]
[424318333,1780768248000,-150.0,0.00013425,2]
[424318332,1780768248000,-150.0,0.00013425,2]
[424318336,1780768248000,-150.0,0.00013425,2]
[424318335,1780768248000,-150.0,0.00013425,2]
[424318339,1780768248000,-500.0,0.00013698,2]
[424318369,1780768248000,-500.0,0.00013698,2]
[424318431,1780768248000,-695.63621381,0.00013699,2]
[424318372,1780768248000,-500.0,0.00013698,2]
[424318404,1780768248000,-695.63621381,0.00013699,2]
[424318407,1780768248000,-695.63621381,0.00013699,2]
[424318405,1780768248000,-695.63621381,0.00013699,2]
[424318406,1780768248000,-695.63621381,0.00013699,2]
[424318408,1780768248000,-695.63621381,0.00013699,2]
[424318409,1780768248000,-695.63621381,0.00013699,2]
[424318421,1780768248000,-695.63621381,0.00013699,2]
[424318419,1780768248000,-695.63621381,0.00013699,2]
[424318420,1780768248000,-695.63621381,0.00013699,2]
[424318411,1780768248000,-695.63621381,0.00013699,2]
[424318412,1780768248000,-695.63621381,0.00013699,2]
[424318413,1780768248000,-695.63621381,0.00013699,2]
[424318418,1780768248000,-695.63621381,0.00013699,2]
[424318414,1780768248000,-695.63621381,0.00013699,2]
[424318416,1780768248000,-695.63621381,0.00013699,2]
[424318417,1780768248000,-695.63621381,0.00013699,2]
[424318415,1780768248000,-695.63621381,0.00013699,2]
[424318422,1780768248000,-695.63621381,0.00013699,2]
[424318425,1780768248000,-695.63621381,0.00013699,2]
[424318423,1780768248000,-695.63621381,0.00013699,2]
[424318427,1780768248000,-695.63621381,0.00013699,2]
[424318426,1780768248000,-695.63621381,0.00013699,2]
[424318424,1780768248000,-695.63621381,0.00013699,2]
[424318430,1780768248000,-695.63621381,0.00013699,2]
[424318428,1780768248000,-695.63621381,0.00013699,2]
[424318432,1780768248000,-695.63621381,0.00013699,2]
[424318368,1780768248000,-500.0,0.00013698,2]
[424318400,1780768248000,-721.84,0.00013699,2]
[424318398,1780768248000,-166.66,0.00013699,2]
[424318410,1780768248000,-695.63621381,0.00013699,2]
[424318401,1780768248000,-2500.0,0.00013699,2]
[424318374,1780768248000,-500.0,0.00013698,2]
[424318403,1780768248000,-695.63621381,0.00013699,2]
[424318371,1780768248000,-500.0,0.00013698,2]
[424318373,1780768248000,-500.0,0.00013698,2]
[424318377,1780768248000,-500.0,0.00013698,2]
[424318375,1780768248000,-500.0,0.00013698,2]
[424318376,1780768248000,-500.0,0.00013698,2]
[424318379,1780768248000,-500.0,0.00013698,2]
[424318380,1780768248000,-500.0,0.00013698,2]
[424318381,1780768248000,-500.0,0.00013698,2]
[424318384,1780768248000,-500.0,0.00013698,2]
[424318382,1780768248000,-500.0,0.00013698,2]
[424318383,1780768248000,-500.0,0.00013698,2]
[424318385,1780768248000,-500.0,0.00013698,2]
[424318378,1780768248000,-500.0,0.00013698,2]
[424318399,1780768248000,-200.0,0.00013699,2]
[424318397,1780768248000,-641.88344752,0.00013698,2]
[424318396,1780768248000,-500.0,0.00013698,2]
[424318390,1780768248000,-500.0,0.00013698,2]
[424318395,1780768248000,-500.0,0.00013698,2]
[424318392,1780768248000,-500.0,0.00013698,2]
[424318393,1780768248000,-500.0,0.00013698,2]
[424318394,1780768248000,-500.0,0.00013698,2]
[424318389,1780768248000,-500.0,0.00013698,2]
[424318388,1780768248000,-500.0,0.00013698,2]
[424318386,1780768248000,-500.0,0.00013698,2]
[424318387,1780768248000,-500.0,0.00013698,2]
[424318391,1780768248000,-500.0,0.00013698,2]
[424318487,1780768249000,-2598.75702079,0.00013699,2]
[424318469,1780768249000,-2598.75702079,0.00013699,2]
[424318475,1780768249000,-2598.75702079,0.00013699,2]
[424318478,1780768249000,-2598.75702079,0.00013699,2]
[424318476,1780768249000,-2598.75702079,0.00013699,2]
[424318471,1780768249000,-2598.75702079,0.00013699,2]
[424318465,1780768249000,-2598.75702079,0.00013699,2]
[424318467,1780768249000,-2598.75702079,0.00013699,2]
[424318468,1780768249000,-2598.75702079,0.00013699,2]
[424318470,1780768249000,-2598.75702079,0.00013699,2]
[424318466,1780768249000,-2598.75702079,0.00013699,2]
[424318479,1780768249000,-2598.75702079,0.00013699,2]
[424318472,1780768249000,-2598.75702079,0.00013699,2]
[424318481,1780768249000,-2598.75702079,0.00013699,2]
[424318490,1780768249000,-2598.75702078,0.00013699,2]
[424318477,1780768249000,-2598.75702079,0.00013699,2]
[424318480,1780768249000,-2598.75702079,0.00013699,2]
[424318484,1780768249000,-2598.75702079,0.00013699,2]
[424318485,1780768249000,-2598.75702079,0.00013699,2]
[424318482,1780768249000,-2598.75702079,0.00013699,2]
[424318483,1780768249000,-2598.75702079,0.00013699,2]
[424318489,1780768249000,-2598.75702078,0.00013699,2]
[424318498,1780768249000,-166.66,0.00014029,2]
[424318499,1780768249000,-171.3,0.00014029,2]
[424318501,1780768249000,-500.0,0.00014249,2]
[424318500,1780768249000,-166.66,0.00014194,2]
[424318497,1780768249000,-250.0,0.00014,2]
[424318464,1780768249000,-2598.75702079,0.00013699,2]
[424318486,1780768249000,-2598.75702079,0.00013699,2]
[424318462,1780768249000,-2598.75702079,0.00013699,2]
[424318434,1780768249000,-695.63621381,0.00013699,2]
[424318463,1780768249000,-2598.75702079,0.00013699,2]
[424318435,1780768249000,-695.63621381,0.00013699,2]
[424318433,1780768249000,-695.63621381,0.00013699,2]
[424318437,1780768249000,-695.63621381,0.00013699,2]
[424318447,1780768249000,-695.63621381,0.00013699,2]
[424318448,1780768249000,-695.63621381,0.00013699,2]
[424318438,1780768249000,-695.63621381,0.00013699,2]
[424318436,1780768249000,-695.63621381,0.00013699,2]
[424318439,1780768249000,-695.63621381,0.00013699,2]
[424318440,1780768249000,-695.63621381,0.00013699,2]
[424318446,1780768249000,-695.63621381,0.00013699,2]
[424318443,1780768249000,-695.63621381,0.00013699,2]
[424318442,1780768249000,-695.63621381,0.00013699,2]
[424318444,1780768249000,-695.63621381,0.00013699,2]
[424318441,1780768249000,-695.63621381,0.00013699,2]
[424318445,1780768249000,-695.63621381,0.00013699,2]
[424318449,1780768249000,-695.63621381,0.00013699,2]
[424318451,1780768249000,-695.63621381,0.00013699,2]
[424318452,1780768249000,-695.63621381,0.00013699,2]
[424318461,1780768249000,-2598.75702079,0.00013699,2]
[424318456,1780768249000,-695.63621381,0.00013699,2]
[424318460,1780768249000,-2598.75702079,0.00013699,2]
[424318453,1780768249000,-695.63621381,0.00013699,2]
[424318459,1780768249000,-2598.75702079,0.00013699,2]
[424318455,1780768249000,-695.63621381,0.00013699,2]
[424318454,1780768249000,-695.63621381,0.00013699,2]
[424318450,1780768249000,-695.63621381,0.00013699,2]
[424318458,1780768249000,-2598.75702079,0.00013699,2]
[424318457,1780768249000,-2598.75702079,0.00013699,2]
[424318473,1780768249000,-2598.75702079,0.00013699,2]
[424318474,1780768249000,-2598.75702079,0.00013699,2]
[424318496,1780768249000,-557.62342837,0.0001399,2]
[424318488,1780768249000,-2598.75702079,0.00013699,2]
[424318491,1780768249000,-166.66,0.00013864,2]
[424318531,1780768249000,-1548.0,0.0001425,2]
[424318532,1780768249000,-1548.0,0.0001425,2]
[424318535,1780768249000,-1548.0,0.0001425,2]
[424318536,1780768249000,-1548.0,0.0001425,2]
[424318533,1780768249000,-1548.0,0.0001425,2]
[424318534,1780768249000,-1548.0,0.0001425,2]
[424318539,1780768249000,-1548.0,0.0001425,2]
[424318538,1780768249000,-1548.0,0.0001425,2]
[424318549,1780768249000,-350.0,0.00014409,2]
[424318550,1780768249000,-350.0,0.0001447,2]
[424318542,1780768249000,-1548.0,0.0001425,2]
[424318547,1780768249000,-166.66,0.00014359,2]
[424318541,1780768249000,-1548.0,0.0001425,2]
[424318546,1780768249000,-444.0,0.00014301,2]
[424318544,1780768249000,-455.0,0.00014301,2]
[424318545,1780768249000,-448.0,0.00014301,2]
[424318543,1780768249000,-1562.23345922,0.0001425,2]
[424318540,1780768249000,-1548.0,0.0001425,2]
[424318548,1780768249000,-303.77,0.000144,2]
[424318555,1780768249000,-166.66,0.00014525,2]
[424318551,1780768249000,-1107.63007,0.00014485,2]
[424318557,1780768249000,-152.0,0.0001455,2]
[424318552,1780768249000,-1613.0535,0.00014485,2]
[424318556,1780768249000,-2000.0,0.00014533,2]
[424318558,1780768249000,-198.86658173,0.0001455,2]
[424318553,1780768249000,-33685.16,0.00014497,2]
[424318559,1780768249000,-1548.0,0.0001455,2]
[424318560,1780768249000,-500.0,0.00014588,2]
[424318493,1780768249000,-1068.11,0.00013937,2]
[424318529,1780768249000,-1548.0,0.0001425,2]
[424318537,1780768249000,-1548.0,0.0001425,2]
[424318554,1780768249000,-35866.50881551,0.00014506,2]
[424318527,1780768249000,-1548.0,0.0001425,2]
[424318530,1780768249000,-1548.0,0.0001425,2]
[424318492,1780768249000,-1548.0,0.00013875,2]
[424318495,1780768249000,-156.05680435,0.0001397,2]
[424318503,1780768249000,-1548.0,0.0001425,2]
[424318505,1780768249000,-152.0,0.0001425,2]
[424318504,1780768249000,-1548.0,0.0001425,2]
[424318502,1780768249000,-1548.0,0.0001425,2]
[424318506,1780768249000,-152.0,0.0001425,2]
[424318508,1780768249000,-152.0,0.0001425,2]
[424318510,1780768249000,-152.0,0.0001425,2]
[424318507,1780768249000,-152.0,0.0001425,2]
[424318509,1780768249000,-152.0,0.0001425,2]
[424318512,1780768249000,-154.55676498,0.0001425,2]
[424318511,1780768249000,-151.0,0.0001425,2]
[424318494,1780768249000,-1555.5,0.00013937,2]
[424318524,1780768249000,-1548.0,0.0001425,2]
[424318528,1780768249000,-1548.0,0.0001425,2]
[424318526,1780768249000,-1548.0,0.0001425,2]
[424318520,1780768249000,-1548.0,0.0001425,2]
[424318515,1780768249000,-151.0,0.0001425,2]
[424318514,1780768249000,-151.0,0.0001425,2]
[424318516,1780768249000,-151.0,0.0001425,2]
[424318519,1780768249000,-151.0,0.0001425,2]
[424318521,1780768249000,-1548.0,0.0001425,2]
[424318517,1780768249000,-151.0,0.0001425,2]
[424318525,1780768249000,-1548.0,0.0001425,2]
[424318522,1780768249000,-1548.0,0.0001425,2]
[424318523,1780768249000,-1548.0,0.0001425,2]
[424318513,1780768249000,-151.0,0.0001425,2]
[424318518,1780768249000,-151.0,0.0001425,2]
[424318613,1780768250000,-1000.0,0.00015,2]
[424318603,1780768250000,-1000.0,0.00015,2]
[424318614,1780768250000,-1000.0,0.00015,2]
[424318597,1780768250000,-1000.0,0.00015,2]
[424318596,1780768250000,-1000.0,0.00015,2]
[424318592,1780768250000,-1000.0,0.00015,2]
[424318595,1780768250000,-1000.0,0.00015,2]
[424318591,1780768250000,-1000.0,0.00015,2]
[424318589,1780768250000,-1000.0,0.00015,2]
[424318593,1780768250000,-1000.0,0.00015,2]
[424318594,1780768250000,-1000.0,0.00015,2]
[424318598,1780768250000,-1000.0,0.00015,2]
[424318602,1780768250000,-1000.0,0.00015,2]
[424318606,1780768250000,-1000.0,0.00015,2]
[424318610,1780768250000,-1000.0,0.00015,2]
[424318605,1780768250000,-1000.0,0.00015,2]
[424318612,1780768250000,-1000.0,0.00015,2]
[424318609,1780768250000,-1000.0,0.00015,2]
[424318608,1780768250000,-1000.0,0.00015,2]
[424318607,1780768250000,-1000.0,0.00015,2]
[424318611,1780768250000,-1000.0,0.00015,2]
[424318616,1780768250000,-1000.0,0.00015,2]
[424318624,1780768250000,-1000.0,0.00015,2]
[424318626,1780768250000,-1000.0,0.00015,2]
[424318625,1780768250000,-1000.0,0.00015,2]
[424318627,1780768250000,-862.65,0.00015,2]
[424318601,1780768250000,-1000.0,0.00015,2]
[424318604,1780768250000,-1000.0,0.00015,2]
[424318600,1780768250000,-1000.0,0.00015,2]
[424318567,1780768250000,-1408.35,0.000146,2]
[424318590,1780768250000,-1000.0,0.00015,2]
[424318615,1780768250000,-470.37,0.00015,2]
[424318563,1780768250000,-43575.2417589,0.00014589,2]
[424318561,1780768250000,-500.0,0.00014588,2]
[424318562,1780768250000,-1065.5548339,0.00014589,2]
[424318564,1780768250000,-111105.6608947,0.00014589,2]
[424318574,1780768250000,-200.0,0.00014879,2]
[424318575,1780768250000,-1000.0,0.0001497,2]
[424318569,1780768250000,-3090.635,0.00014717,2]
[424318566,1780768250000,-13507.567691,0.00014589,2]
[424318571,1780768250000,-281.2612502,0.00014775,2]
[424318573,1780768250000,-154.52,0.00014813,2]
[424318576,1780768250000,-500.0,0.0001497,2]
[424318565,1780768250000,-17745.1533287,0.00014589,2]
[424318599,1780768250000,-1000.0,0.00015,2]
[424318570,1780768250000,-156.86,0.00014729,2]
[424318572,1780768250000,-350.0,0.00014781,2]
[424318578,1780768250000,-300.0,0.00014999,2]
[424318577,1780768250000,-500.0,0.00014999,2]
[424318587,1780768250000,-1000.0,0.00015,2]
[424318586,1780768250000,-82320.64089074,0.00015,2]
[424318588,1780768250000,-1000.0,0.00015,2]
[424318581,1780768250000,-300.0,0.00014999,2]
[424318579,1780768250000,-666.0,0.00014999,2]
[424318582,1780768250000,-676.50366034,0.00014999,2]
[424318580,1780768250000,-300.0,0.00014999,2]
[424318583,1780768250000,-300.0,0.00014999,2]
[424318584,1780768250000,-300.0,0.00014999,2]
[424318585,1780768250000,-666.0,0.00014999,2]
[424318568,1780768250000,-200.0,0.00014715,2]
[424318617,1780768250000,-1000.0,0.00015,2]
[424318684,1780768250000,-2000.0,0.00015379,2]
[424318622,1780768250000,-1000.0,0.00015,2]
[424318657,1780768250000,-1672.7364795,0.00015033,2]
[424318662,1780768250000,-500.0,0.00015068,2]
[424318660,1780768250000,-500.0,0.00015068,2]
[424318661,1780768250000,-500.0,0.00015068,2]
[424318654,1780768250000,-300.0,0.0001502,2]
[424318658,1780768250000,-157.324506,0.00015068,2]
[424318659,1780768250000,-900.0,0.00015068,2]
[424318664,1780768250000,-500.0,0.00015068,2]
[424318663,1780768250000,-500.0,0.00015068,2]
[424318666,1780768250000,-156.05680435,0.00015203,2]
[424318676,1780768250000,-350.0,0.00015341,2]
[424318665,1780768250000,-200.0,0.0001515,2]
[424318668,1780768250000,-350.0,0.00015257,2]
[424318656,1780768250000,-1148.61238259,0.00015033,2]
[424318667,1780768250000,-350.0,0.00015232,2]
[424318670,1780768250000,-10000.0,0.00015275,2]
[424318672,1780768250000,-1517.64,0.000153,2]
[424318673,1780768250000,-200.0,0.00015301,2]
[424318674,1780768250000,-12728.07,0.0001531,2]
[424318671,1780768250000,-350.0,0.00015293,2]
[424318675,1780768250000,-500.0,0.00015341,2]
[424318677,1780768250000,-13308.1946628,0.00015342,2]
[424318679,1780768250000,-500.0,0.00015378,2]
[424318678,1780768250000,-500.0,0.00015378,2]